Cogmind - Beta 13 @@@ ROGUE MODE // 2024.04.25 @ 22:55:57 Player: Wesmed Result: Destroyed by A0-WA4(R) with Subdweller Machine Gun Performance ------------- Evolutions (0) 0 Regions Visited (2) 400 Robots Destroyed (27) 135 Value Destroyed (551) 551 Prototype IDs (0) 0 Alien Tech Used (0) 0 Bonus (0) 0 TOTAL SCORE: 1086 Bonus ------- None Cogmind --------- Core Integrity 0/250 Matter 295/300 Energy 160/160 System Corruption 0% Temperature Cool (0) Movement Core (450) Ox8 Location -10/Subcaves Parts ------- > --- POWER (1) -------- Light Nuclear Core > --- PROPULSION (2) --- (None) > --- UTILITY (2) ------ Large Storage Unit Targeting Computer > --- WEAPON (2) ------- (None) > --- INVENTORY (15) --- Ion Engine Ion Engine Light Ion Engine Wheel Wheel Heat Sink Heat Sink Structural Scanner Terrain Scan Processor ECM Suite EM Pulse Gun Small Laser Small Laser Battle Rifle Mining Laser Peak State ------------ > --- POWER ------------ Ion Engine > --- PROPULSION ------- Wheel Wheel > --- UTILITY ---------- Large Storage Unit Improved Terrain Scanner > --- WEAPON ----------- Small Laser Light Assault Rifle > --- INVENTORY -------- Ion Engine Light Ion Engine Light Ion Engine Wheel Wheel Heat Sink Heat Sink Terrain Scan Processor ECM Suite EM Pulse Gun Mining Laser [Rating: 10] Favorites ----------- Power Light Nuclear Core Engine Ion Engine Power Core Light Nuclear Core Propulsion Wheel Wheel Wheel Utility Large Storage Unit Device Improved Terrain Scanner Storage Large Storage Unit Processor Targeting Computer Weapon Small Laser Energy Gun Small Laser Ballistic Gun Light Assault Rifle Launcher Subdweller Shrapnel Launcher Build | -11 -10 -10 ------- Run | Yrd Mat Sub Slots Evolved . | . . . Power . | . . . Propulsion . | . . . Utility . | . . . Weapon . | . . . Parts Attached 16 | 6 8 2 Power 2 | . 2 . Engine 1 | . 1 . Core 1 | . 1 . Reactor . | . . . Propulsion 5 | 2 3 . Treads . | . . . Leg . | . . . Wheel 5 | 2 3 . Hover . | . . . Flight . | . . . Utility 4 | 2 1 1 Device 1 | 1 . . Storage 2 | 1 1 . Processor 1 | . . 1 Hackware . | . . . Protection . | . . . Artifact . | . . . Weapon 5 | 2 2 1 Energy Gun 3 | 1 2 . Energy Cannon . | . . . Ballistic Gun 1 | 1 . . Ballistic Cannon . | . . . Launcher 1 | . . 1 Special Weapon . | . . . Impact Weapon . | . . . Slashing Weapon . | . . . Piercing Weapon . | . . . Special Melee Weapon . | . . . Unidentified Prototypes . | . . . Parts Lost 6 | . 3 3 Power . | . . . Propulsion 3 | . 2 1 Utility 1 | . 1 . Weapon 2 | . . 2 Highest Loss Streak 3 | . 1 3 To Critical Strikes . | . . . Average Slot Usage (%) 82 | . 83 80 Engine 1 | . 2 . Core 7 | . 4 14 Wheel 20 | . 24 14 Device 6 | . 9 . Storage 14 | . 14 14 Processor 3 | . . 9 Energy Gun 14 | . 14 14 Ballistic Gun 11 | . 14 6 Launcher 2 | . . 7 Naked Turns . | . . . Heaviest Build 34 | 8 28 34 Greatest Support 20 | 20 20 10 Greatest Overweight (x) 8 | . 2 8 Average Overweight (x) 1 | . 1 2 Largest Inventory Capacity 15 | 8 15 15 Average Capacity 13 | 7 13 15 Most Carried 15 | 8 15 15 Average Carried 11 | 3 10 14 Final Capacity 15 | 8 15 15 Final Carried 15 | 8 14 15 Class Distribution -------------------- 64% | Mutant 35% | Scavenger-Mutant Dominant Class ---------------- Mutant | -10/Materials Scavenger-Mutant | -10/Subcaves Resources | -11 -10 -10 ----------- Run | Yrd Mat Sub Matter Collected 456 | 265 119 72 Remotely . | . . . Salvage Created 777 | 173 502 102 Parts 61 | 15 40 6 Haulers Intercepted . | . . . Recyclers Shooed . | . . . Parts Field Recycled . | . . . Retrieved Matter . | . . . Parts Self-Destructed 16 | . . 16 Prevented . | . . . Kills | -11 -10 -10 ------- Run | Yrd Mat Sub Combat Hostiles Destroyed 15 | . 11 4 Guns 13 | . 11 2 AOE 2 | . . 2 Classes Destroyed 9 | 2 5 2 Builder 4 | . 4 . Tunneler 3 | 3 . . Recycler 1 | 1 . . Mechanic 1 | . 1 . Turret 2 | . . 2 Watcher 1 | . 1 . Swarmer 5 | . 3 2 Grunt 8 | . 8 . Subdweller 2 | . . 2 Best Kill Streak 5 | 4 5 2 Combat Bots Only 3 | . 3 2 Max Kills in Single Turn 2 | 1 1 2 Gunslinging . | . . . Exploded 2 | . . 2 Melee . | . . . Uniques/NPCs Destroyed . | . . . Combat | -11 -10 -10 -------- Run | Yrd Mat Sub Hostile Shots Fired 97 | . 49 48 Missed 28 | . 12 16 Damage Taken 830 | . 421 409 Core 260 | . 81 179 Absorbed by Shields . | . . . Core Remaining (%) 100 | 100 . . Volleys Fired 66 | 5 50 11 Largest 2 | 2 2 2 Hottest 80 | 60 60 80 Shots Fired 132 | 10 100 22 Gun 129 | 10 100 19 Cannon . | . . . Launcher 3 | . . 3 Special . | . . . Kinetic 66 | 5 50 11 Thermal 66 | 5 50 11 Explosive . | . . . Electromagnetic . | . . . Robot Hit Streak 9 | 5 9 8 Robot Miss Streak 5 | 1 4 5 Penetration Max . | . . . Secondary Targets 1 | . 1 . Max Gunslinging Chain 1 | . 1 . Shots Hit Robots 82 | 7 62 13 Core Hits 44 | 5 32 7 Critical Kills 1 | . 1 . Critical Parts Destroyed . | . . . Critical Strikes 1 | . 1 . Destroy 1 | . 1 . Melee Attacks . | . . . Impact . | . . . Slashing . | . . . Piercing . | . . . Sneak Attacks . | . . . Combat Hostiles . | . . . Follow-up Attacks . | . . . Damage Inflicted 1111 | 73 613 425 Guns 795 | 73 613 109 Cannons . | . . . Explosions 316 | . . 316 Melee . | . . . Ramming . | . . . Kinetic 609 | 28 247 334 Thermal 502 | 45 366 91 Explosive . | . . . Electromagnetic . | . . . Impact . | . . . Slashing . | . . . Piercing . | . . . Highest Corruption . | . . . Average Corruption . | . . . Corruption Purged . | . . . Corruption Blocked . | . . . Overload Shots . | . . . Overflow Damage 7 | . . 7 Projectiles . | . . . Explosions 7 | . . 7 Melee . | . . . Knockbacks . | . . . Impact . | . . . Kinetic . | . . . Secondary . | . . . Self-Inflicted Damage 21 | . . 21 Shots 1 | . . 1 Rammed . | . . . Targets Rammed . | . . . Kicked . | . . . Crushed . | . . . Highest Temperature 103 | 10 103 . Average Temperature 24 | 7 25 . Received Heat Transfer 285 | . 180 105 Siege Activations . | . . . Robots Corrupted . | . . . Combat Hostiles . | . . . Parts Fried . | . . . Impact Corruptions . | . . . Robots Melted . | . . . Combat Hostiles . | . . . Parts Melted . | . . . Heat Transferred 1125 | 100 825 200 Parts Sabotaged . | . . . Parts Stolen . | . . . Parts Stripped . | . . . Power Chain Reactions . | . . . Alert | -11 -10 -10 ------- Run | Yrd Mat Sub Peak Influence 395 | 20 395 . Initial 13 | . 13 . Average 160 | 7 187 . Maximum Alert Level 1 | . 1 . Low Security (%) 55 | 100 47 . Level 1 44 | . 52 . Level 2 . | . . . Level 3 . | . . . Level 4 . | . . . Level 5 . | . . . High Security . | . . . Max Security . | . . . Squads Dispatched 3 | . 3 . Investigation . | . . . Extermination . | . . . Reinforcement 3 | . 3 . Assault . | . . . Garrison . | . . . Intercept . | . . . Searches Triggered . | . . . Construction Impeded . | . . . Haulers Reinforced . | . . . Active Scanning Responses . | . . . Cargo Convoy Interrupts . | . . . Stealth | -11 -10 -10 --------- Run | Yrd Mat Sub Distress Signals 3 | . 3 . Communications Jammed . | . . . Distress Signals . | . . . Times Spotted 45 | . 24 21 Peak Tracking Total 10 | . 6 10 Tactical Retreats 7 | . 2 5 Traps | -11 -10 -10 ------- Run | Yrd Mat Sub Traps Triggered . | . . . Indirectly . | . . . Trap Hack Attempts . | . . . Triggered . | . . . Disarmed . | . . . Reprogrammed . | . . . Reused . | . . . Traps Extracted . | . . . Installed . | . . . Triggered . | . . . Machines | -11 -10 -10 ---------- Run | Yrd Mat Sub Machines Disabled 3 | . . 3 Max in Single Turn 3 | . . 3 Machines Repaired . | . . . Machines Dismantled . | . . . Machines Sabotaged . | . . . Overloaded Fab Kills . | . . . Hacking | -11 -10 -10 --------- Run | Yrd Mat Sub Machines Accessed . | . . . Terminals . | . . . Fabricators . | . . . Repair Stations . | . . . Recycling Units . | . . . Scanalyzers . | . . . Garrison Access . | . . . Total Hacks . | . . . Successful . | . . . Failed . | . . . Catastrophic . | . . . Database Lockouts . | . . . Manual . | . . . Terminals . | . . . Fabricators . | . . . Repair Stations . | . . . Recycling Units . | . . . Scanalyzers . | . . . Garrison Access . | . . . Terminal Hacks . | . . . Fabricator Hacks . | . . . Repair Station Hacks . | . . . Recycling Unit Hacks . | . . . Scanalyzer . | . . . Garrison Access Hacks . | . . . Unauthorized Hacks . | . . . Terminals . | . . . Fabricators . | . . . Repair Stations . | . . . Recycling Units . | . . . Scanalyzers . | . . . Garrison Access . | . . . Data Cores Recovered . | . . . Used . | . . . Hacking Detections . | . . . Full Trace Events . | . . . Feedback Events . | . . . Feedback Blocked . | . . . Robot Schematics Acquired . | . . . Robots Built . | . . . Authchips . | . . . Time . | . . . Total Robot Build Rating . | . . . Part Schematics Acquired . | . . . Parts Built . | . . . Authchips . | . . . Time . | . . . Total Part Build Rating . | . . . Parts Repaired . | . . . Time . | . . . Parts Recycled . | . . . Recycled Matter . | . . . Retrieved Matter . | . . . Retrieved Components . | . . . Parts Scanalyzed . | . . . Part Schematics Acquired . | . . . Parts Damaged . | . . . Bothacking | -11 -10 -10 ------------ Run | Yrd Mat Sub Used RIF Installer . | . . . Robots Hacked . | . . . Non-combat . | . . . Combat . | . . . Robot Hacks Applied . | . . . Relay Couplers Released . | . . . Fabnet Peak Effective % . | . . . Robots Rewired . | . . . Allies Hacked . | . . . Hacks Repelled . | . . . Allies | -11 -10 -10 -------- Run | Yrd Mat Sub Total Allies . | . . . Largest Group . | . . . Highest-Rated Group . | . . . Highest-Rated Ally . | . . . Total Orders . | . . . Ally Attacks . | . . . Total Damage . | . . . Kills . | . . . Allies Corrupted . | . . . Allies Melted . | . . . Intel | -11 -10 -10 ------- Run | Yrd Mat Sub Robot Analysis Total . | . . . Derelict Logs Recovered . | . . . Drone Launches . | . . . Drone Recoveries . | . . . Exploration | -11 -10 -10 ------------- Run | Yrd Mat Sub Turns Passed 853 | 86 489 278 Spaces Moved 596 | 70 321 205 Core 4 | 3 . 1 Treads . | . . . Legs . | . . . Wheels 592 | 67 321 204 Hover . | . . . Flight . | . . . Fastest Speed 50 | 50 80 110 Average Speed 101 | 78 95 119 Slowest Speed 450 | 80 110 450 Overloaded Moves . | . . . Propulsion Burnouts . | . . . Robots Hopped . | . . . Cave-ins Triggered . | . . . Exploration Rate (%) 22 | 3 48 15 Regions Visited 2 Branch Regions 1 Pre-discovered Areas . | . . . Known Exits Taken . | . . . Unknown Exits Taken 2 | 1 1 . Scrap Searched 5 | . . 5 Spaces Dug . | . . . Terrain Destroyed 35 | . . 35 Melee . | . . . Projectile . | . . . AOE 35 | . . 35 Terrain Rammed . | . . . Walls Destroyed . | . . . Machines Disabled . | . . . Actions | -11 -10 -10 --------- Run | Yrd Mat Sub Total 724 | 88 415 221 Wait 27 | . 27 . Move 594 | 69 320 205 Hop . | . . . Pick Up 15 | 8 6 1 Fast Attach 9 | 6 1 2 Attach 1 | . 1 . Detach 1 | . . 1 Swap 6 | . 6 . Drop 5 | . 4 1 Fire 66 | 5 50 11 Melee . | . . . Ram . | . . . Kick . | . . . Crush . | . . . Escape Stasis . | . . . Rewire . | . . . Trap . | . . . Miscellaneous . | . . . Route ------- -11/Scrapyard -10/Materials (discovered 2 exits: [*Min] / [*Sub]) -10/Subcaves (discovered 1 exit: [*Rec]) History --------- Turn | Location | Event 7 | -11/Scrapyard | Discovered new exit (range 16) 87 | -11/Scrapyard | Entered Materials 315 | -10/Materials | Build established: Mutant 352 | -10/Materials | Discovered new exit (range 14) 548 | -10/Materials | Discovered new exit (range 11) 576 | -10/Materials | Entered Subcaves 663 | -10/Subcaves | Core integrity fell below 50% 714 | -10/Subcaves | Discovered new exit (range 13) 846 | -10/Subcaves | Ambushed by swarm of Subdwellers 849 | -10/Subcaves | Ambushed by Subdwellers from Twisted Machinery 849 | -10/Subcaves | Ambushed by Subdwellers from Twisted Machinery 849 | -10/Subcaves | Ambushed by Subdwellers from Twisted Machinery 849 | -10/Subcaves | Ambushed by Subdwellers from Twisted Machinery 849 | -10/Subcaves | Ambushed by Subdwellers from Twisted Machinery 850 | -10/Subcaves | Core integrity fell below 20% 854 | -10/Subcaves | Destroyed by A0-WA4(R) with Subdweller Machine Gun Last Messages --------------- 00800_ LZ-FRK(z): "She is not going to be happy we haven't found any suitable candidates yet." A mess of Twisted Machinery falls from the cavern ceiling. S5-V2K(R) comes tumbling into view. 00849_ S5-V2K(R) destroyed. 00849_ RB-CC6(R) destroyed. 00849_ C5-WK7(R) angrily emerges from the Twisted Machinery. 00849_ JO-A8U(R) angrily emerges from the Twisted Machinery. 00849_ A0-WA4(R) angrily emerges from the Twisted Machinery. 00849_ 81-WGN(R) angrily emerges from the Twisted Machinery. 00849_ 2B-8Y5(R) angrily emerges from the Twisted Machinery. 00851_ Sml. Laser destroyed. 00851_ Sub. Shrapnel Launcher destroyed. 00852_ Wheel destroyed. Map ----- +----------------------------------------------------+ | ?????????????????????????????????????????????????? | | ?????????????????????????????????????????????????? | | ?????????????????????????????????????????????????? | | ?????????????????????????????????????????????????? | | ?????????????????????????????????????????????????? | | ?????????????????????????????????????????????????? | | ?????????????????????????????????????????????????? | | ?????????????????????????????????????????????????? | | ?????????????????????????????????????????????????? | | ?????????????????????????????????????????????????? | | ?????????????????????????????????????????????????? | | ?????????????????????????????????????????????????? | | ????????????????????????????? ???????????????????? | | ????????????????????????????? #??????????????????? | | ???????????????????????????? ##?????????????????? | | ???????????????????????????# #?????????????????? | | ??????????????????????????? #?????????????????? | | ?????????????????????????## ??????????????????? | | ???????????????????????## ???????????????????? | | ?????????????????????### #????????????????????? | | ???????????????####### #?????????????????????? | | ???????????????# ; ## #??????????????????????? | | ???????????????## ]## #????? #????????????????? | | ???????????????#;R RR; #??? #?????????????????? | | ???????????????## &R;R ## #?????????????????? | | ???????????????#; &R @ #?????????????????? | | ???????????????# RR ;;# ##?????????????????? | | ???????????????# RR ;;## #??????????????????? | | ???????????????# ;##? #??????????????????? | | ???????????????# ### #??????????????????? | | ??????????????## #??????????????????? | | ?????????????## #??????????????????? | | ?????????????# #??????????????????? | | ?????????????# #### #?????????????????? | | ?????????????# ###???? #?????????????????? | | ?????????????## ##???????##?????????????????? | | ??????????????## ##??????????????????????????? | | ???????????????### #??????????????????????????? | | ?????????????????# #??????????????????????????? | | ?????????????????## ##??????????????????????????? | | ?????????????????# #??????????????????????????? | | ?????????????????# #??????????????????????????? | | ?????????????????## #??????????????????????????? | | ?????????????????# ##??????????????????????????? | | ?????????????????## #??????????????????????????? | | ?????????????????# #??????????????????????????? | | ?????????????????# #??????????????????????????? | | ?????????????????# #??????????????????????????? | | ?????????????????## #??????????????????????????? | | ?????????????????## ##??????????????????????????? | +----------------------------------------------------+ Best States ------------- Heat Dissipation 25 Energy Generation 14 Energy Capacity 250 Matter Stores 300 Matter Capacity 300 Sight Range 16 Terrain Scan Range 16 Terrain Scan Density 10 Evasion (%) 44 Targeting Accuracy 5 Item Schematics ----------------- None Robot Schematics ------------------ None Fabricated ------------ Nothing Alien Tech Used ----------------- None Achievements -------------- None Challenges ------------ None Game ------ Seed ContainmentFrostVibroblade Manual? 0 Play Time 00:12:39 Cumulative 21.3 hours Start 2024.04.25 @ 22:46:17 End 2024.04.25 @ 22:55:57 Sessions 1 Manual Loads 0 Difficulty Rogue Special Mode None Game No. 25 Rogue 17 Adventurer 8 Explorer 0 Win Type - Total 0 Types 0/0/0/0/0/0/0/0/0 Lore% 26 Gallery% 31 Achievement% 25 Wizard Run 0 Options --------- Layout 1 ASCII 0 Keyboard 0 Movement Arrows Keybinds 0 Fullscreen 1 Font 16/SmallcapsGlow Map View 55x38 Zoom Use 0% Tactical HUD 1 Map Filters NONE Filters NONE Steam 1 RUN: 05a44f19-b658-4c05-bc08-2e3d38eb800d